[Event "Titled Tuesday Blitz December 14 2021"]
[White "Lewicki, Miroslaw"]
[Black "Matinian, Nikita"]
[WhiteFideId "1113380"]
[BlackFideId "24129100"]
[WhiteElo "2283"]
[BlackElo "2422"]
[Result "0-1"]
[Round "07"]
[TimeControl "180+1"]
[Date "2021.12.15"]
[WhiteClock "0:00:01"]
[BlackClock "0:00:36"]

1. g3 {[%clk 0:03:00]}  g6 {[%clk 0:02:54]} 2. Bg2 {[%clk 0:03:01]}  Bg7 {[%clk 0:02:51]} 3. Nf3 {[%clk 0:03:02]}  Nf6 {[%clk 0:02:50]} 4. O-O {[%clk 0:03:03]}  d6 {[%clk 0:02:48]} 5. d4 {[%clk 0:03:03]}  O-O {[%clk 0:02:48]} 6. c4 {[%clk 0:03:04]}  Nc6 {[%clk 0:02:49]} 7. Nc3 {[%clk 0:03:05]}  Bf5 {[%clk 0:02:49]} 8. Re1 {[%clk 0:03:05]}  Ne4 {[%clk 0:02:49]} 9. e3 {[%clk 0:03:03]}  Nxc3 {[%clk 0:02:49]} 10. bxc3 {[%clk 0:03:03]}  Be4 {[%clk 0:02:50]} 11. Qb3 {[%clk 0:03:00]}  Rb8 {[%clk 0:02:48]} 12. Nd2 {[%clk 0:03:00]}  Bxg2 {[%clk 0:02:47]} 13. Kxg2 {[%clk 0:03:01]}  e5 {[%clk 0:02:48]} 14. Bb2 {[%clk 0:02:59]}  Qe8 {[%clk 0:02:45]} 15. Rad1 {[%clk 0:02:58]}  e4 {[%clk 0:02:44]} 16. f3 {[%clk 0:02:45]}  exf3+ {[%clk 0:02:44]} 17. Nxf3 {[%clk 0:02:44]}  Na5 {[%clk 0:02:44]} 18. Qb4 {[%clk 0:02:43]}  b6 {[%clk 0:02:44]} 19. d5 {[%clk 0:02:17]}  Qe4 {[%clk 0:02:40]} 20. c5 {[%clk 0:02:08]}  Qxb4 {[%clk 0:02:34]} 21. cxb4 {[%clk 0:02:09]}  Bxb2 {[%clk 0:02:33]} 22. bxa5 {[%clk 0:02:09]}  bxc5 {[%clk 0:02:33]} 23. e4 {[%clk 0:02:03]}  Bc3 {[%clk 0:02:32]} 24. Re2 {[%clk 0:01:58]}  Bxa5 {[%clk 0:02:33]} 25. e5 {[%clk 0:01:58]}  Rfe8 {[%clk 0:02:25]} 26. e6 {[%clk 0:01:57]}  Bc3 {[%clk 0:02:09]} 27. Kh3 {[%clk 0:01:42]}  h6 {[%clk 0:02:02]} 28. Rd3 {[%clk 0:01:38]}  Bf6 {[%clk 0:01:57]} 29. Ra3 {[%clk 0:01:32]}  fxe6 {[%clk 0:01:52]} 30. dxe6 {[%clk 0:01:32]}  Rb7 {[%clk 0:01:52]} 31. Ra6 {[%clk 0:00:48]}  c4 {[%clk 0:01:48]} 32. Rc6 {[%clk 0:00:45]}  c3 {[%clk 0:01:48]} 33. Nh4 {[%clk 0:00:40]}  Kg7 {[%clk 0:01:46]} 34. Ng2 {[%clk 0:00:40]}  Be5 {[%clk 0:01:44]} 35. Nf4 {[%clk 0:00:33]}  Bxf4 {[%clk 0:01:32]} 36. gxf4 {[%clk 0:00:34]}  Kf6 {[%clk 0:01:32]} 37. Rc2 {[%clk 0:00:21]}  Rxe6 {[%clk 0:01:27]} 38. R2xc3 {[%clk 0:00:20]}  Re7 {[%clk 0:01:25]} 39. Kg3 {[%clk 0:00:19]}  Ke6 {[%clk 0:01:19]} 40. a4 {[%clk 0:00:14]}  Kd7 {[%clk 0:01:20]} 41. a5 {[%clk 0:00:14]}  Kd8 {[%clk 0:01:17]} 42. Kg4 {[%clk 0:00:11]}  Rb5 {[%clk 0:01:15]} 43. Ra6 {[%clk 0:00:11]}  Rb7 {[%clk 0:01:07]} 44. h4 {[%clk 0:00:11]}  Rf7 {[%clk 0:00:57]} 45. h5 {[%clk 0:00:09]}  gxh5+ {[%clk 0:00:57]} 46. Kxh5 {[%clk 0:00:06]}  Rxf4 {[%clk 0:00:55]} 47. Rg3 {[%clk 0:00:06]}  Rf8 {[%clk 0:00:51]} 48. Kxh6 {[%clk 0:00:04]}  Kc8 {[%clk 0:00:43]} 49. Kg7 {[%clk 0:00:04]}  Rd8 {[%clk 0:00:43]} 50. Kf6 {[%clk 0:00:03]}  d5 {[%clk 0:00:40]} 51. Ke5 {[%clk 0:00:02]}  d4 {[%clk 0:00:40]} 52. Rd3 {[%clk 0:00:01]}  Rb5+ {[%clk 0:00:40]} 53. Ke4 {[%clk 0:00:02]}  Kb7 {[%clk 0:00:40]} 54. Rf6 {[%clk 0:00:01]}  c5 {[%clk 0:00:36]} 55. a6+ {[%clk 0:00:01]}  Kc7 {[%clk 0:00:37]} 56. Rg3 {[%clk 0:00:02]}  Rd7 {[%clk 0:00:36]} 57. Ke5 {[%clk 0:00:01]}  Rb6 {[%clk 0:00:36]} 0-1


[Site "https://www.chess.com"]

[Event "Titled Tuesday Blitz December 14 2021"]
[White "Makhnev, Denis"]
[Black "Grandelius, Nils"]
[WhiteFideId "13707647"]
[BlackFideId "1710400"]
[WhiteElo "2491"]
[BlackElo "2617"]
[Result "0-1"]
[Round "07"]
[TimeControl "180+1"]
[Date "2021.12.15"]
[WhiteClock "0:00:08"]
[BlackClock "0:00:34"]

1. Nf3 {[%clk 0:03:00]}  d5 {[%clk 0:02:59]} 2. g3 {[%clk 0:02:58]}  b6 {[%clk 0:02:59]} 3. Bg2 {[%clk 0:02:58]}  Bb7 {[%clk 0:03:00]} 4. O-O {[%clk 0:02:59]}  Nf6 {[%clk 0:03:00]} 5. d4 {[%clk 0:02:58]}  e6 {[%clk 0:02:55]} 6. Ne5 {[%clk 0:02:57]}  Qc8 {[%clk 0:02:33]} 7. Bg5 {[%clk 0:02:33]}  Nbd7 {[%clk 0:02:29]} 8. Nxd7 {[%clk 0:02:32]}  Nxd7 {[%clk 0:02:28]} 9. Nd2 {[%clk 0:02:28]}  h6 {[%clk 0:02:25]} 10. Bf4 {[%clk 0:02:27]}  Be7 {[%clk 0:02:15]} 11. e4 {[%clk 0:02:22]}  dxe4 {[%clk 0:02:16]} 12. Nxe4 {[%clk 0:02:21]}  O-O {[%clk 0:02:13]} 13. c3 {[%clk 0:02:20]}  Nf6 {[%clk 0:02:10]} 14. Qc2 {[%clk 0:02:16]}  Rd8 {[%clk 0:01:51]} 15. Rad1 {[%clk 0:02:10]}  Bxe4 {[%clk 0:01:44]} 16. Bxe4 {[%clk 0:02:09]}  Nxe4 {[%clk 0:01:45]} 17. Qxe4 {[%clk 0:02:09]}  Bf8 {[%clk 0:01:42]} 18. Rfe1 {[%clk 0:02:03]}  Rd7 {[%clk 0:01:39]} 19. Qc6 {[%clk 0:01:59]}  Qd8 {[%clk 0:01:32]} 20. a4 {[%clk 0:01:50]}  Rb8 {[%clk 0:01:31]} 21. h4 {[%clk 0:01:43]}  Bd6 {[%clk 0:01:31]} 22. Be5 {[%clk 0:01:40]}  Bxe5 {[%clk 0:01:29]} 23. Rxe5 {[%clk 0:01:39]}  Rd6 {[%clk 0:01:27]} 24. Qf3 {[%clk 0:01:29]}  Qd7 {[%clk 0:01:28]} 25. a5 {[%clk 0:01:17]}  b5 {[%clk 0:01:19]} 26. b4 {[%clk 0:01:11]}  a6 {[%clk 0:01:15]} 27. Rde1 {[%clk 0:01:07]}  Rd8 {[%clk 0:01:13]} 28. Rc5 {[%clk 0:01:02]}  Rd5 {[%clk 0:01:12]} 29. Rxd5 {[%clk 0:00:58]}  Qxd5 {[%clk 0:01:13]} 30. Qxd5 {[%clk 0:00:58]}  Rxd5 {[%clk 0:01:14]} 31. f4 {[%clk 0:00:56]}  h5 {[%clk 0:01:13]} 32. Re5 {[%clk 0:00:55]}  c6 {[%clk 0:01:03]} 33. Kf2 {[%clk 0:00:51]}  Kf8 {[%clk 0:01:03]} 34. Kf3 {[%clk 0:00:50]}  Ke7 {[%clk 0:01:03]} 35. Re2 {[%clk 0:00:43]}  Kd6 {[%clk 0:00:59]} 36. Re1 {[%clk 0:00:41]}  Rf5 {[%clk 0:00:58]} 37. Ke4 {[%clk 0:00:31]}  Rf6 {[%clk 0:00:58]} 38. Re3 {[%clk 0:00:26]}  Rg6 {[%clk 0:00:58]} 39. Kf3 {[%clk 0:00:22]}  f6 {[%clk 0:00:47]} 40. f5 {[%clk 0:00:20]}  exf5 {[%clk 0:00:46]} 41. Re8 {[%clk 0:00:21]}  Rg4 {[%clk 0:00:42]} 42. Ra8 {[%clk 0:00:20]}  f4 {[%clk 0:00:42]} 43. gxf4 {[%clk 0:00:18]}  Rxh4 {[%clk 0:00:43]} 44. Rxa6 {[%clk 0:00:18]}  Rh3+ {[%clk 0:00:43]} 45. Ke4 {[%clk 0:00:17]}  Rxc3 {[%clk 0:00:44]} 46. Ra7 {[%clk 0:00:16]}  g6 {[%clk 0:00:43]} 47. f5 {[%clk 0:00:16]}  gxf5+ {[%clk 0:00:38]} 48. Kxf5 {[%clk 0:00:17]}  Rf3+ {[%clk 0:00:33]} 49. Ke4 {[%clk 0:00:17]}  Rb3 {[%clk 0:00:34]} 50. Rf7 {[%clk 0:00:15]}  Ke6 {[%clk 0:00:34]} 51. Rc7 {[%clk 0:00:15]}  f5+ {[%clk 0:00:34]} 52. Kf4 {[%clk 0:00:14]}  Kd6 {[%clk 0:00:34]} 53. Rh7 {[%clk 0:00:09]}  Rxb4 {[%clk 0:00:34]} 54. a6 {[%clk 0:00:08]}  Rxd4+ {[%clk 0:00:34]} 0-1


[Site "https://www.chess.com"]

[Event "Titled Tuesday Blitz December 14 2021"]
[White "Maly, Alexey"]
[Black "Pichot, Alan"]
[WhiteFideId "14103184"]
[BlackFideId "110973"]
[WhiteElo "2294"]
[BlackElo "2629"]
[Result "1/2-1/2"]
[Round "07"]
[TimeControl "180+1"]
[Date "2021.12.14"]
[WhiteClock "0:02:41"]
[BlackClock "0:02:41"]

1. d4 {[%clk 0:03:00]}  Nf6 {[%clk 0:03:00]} 2. c4 {[%clk 0:03:00]}  e6 {[%clk 0:03:01]} 3. Nf3 {[%clk 0:03:01]}  d5 {[%clk 0:03:01]} 4. e3 {[%clk 0:03:01]}  a6 {[%clk 0:03:00]} 5. Nbd2 {[%clk 0:03:01]}  c5 {[%clk 0:02:55]} 6. dxc5 {[%clk 0:03:02]}  Bxc5 {[%clk 0:02:55]} 7. a3 {[%clk 0:03:03]}  O-O {[%clk 0:02:54]} 8. b4 {[%clk 0:03:03]}  Ba7 {[%clk 0:02:55]} 9. Bb2 {[%clk 0:03:03]}  Nc6 {[%clk 0:02:55]} 10. Be2 {[%clk 0:03:03]}  Qe7 {[%clk 0:02:49]} 11. O-O {[%clk 0:03:02]}  Rd8 {[%clk 0:02:48]} 12. Qb3 {[%clk 0:03:00]}  d4 {[%clk 0:02:41]} 13. exd4 {[%clk 0:03:00]}  Nxd4 {[%clk 0:02:41]} 14. Nxd4 {[%clk 0:02:59]}  Bxd4 {[%clk 0:02:42]} 15. Bxd4 {[%clk 0:02:57]}  Rxd4 {[%clk 0:02:43]} 16. Nf3 {[%clk 0:02:56]}  Rd8 {[%clk 0:02:43]} 17. Rfd1 {[%clk 0:02:53]}  Bd7 {[%clk 0:02:43]} 18. Ne5 {[%clk 0:02:53]}  Be8 {[%clk 0:02:42]} 19. Bf3 {[%clk 0:02:53]}  Qc7 {[%clk 0:02:41]} 20. Qe3 {[%clk 0:02:51]}  Ba4 {[%clk 0:02:40]} 21. Rxd8+ {[%clk 0:02:45]}  Rxd8 {[%clk 0:02:41]} 22. h3 {[%clk 0:02:41]} 1/2-1/2


[Site "https://www.chess.com"]

[Event "Titled Tuesday Blitz December 14 2021"]
[White "Martins, Bruno Andre Leite"]
[Black "Sychev, Klementy"]
[WhiteFideId "1942255"]
[BlackFideId "4114060"]
[WhiteElo "2137"]
[BlackElo "2615"]
[Result "1-0"]
[Round "07"]
[TimeControl "180+1"]
[Date "2021.12.14"]
[WhiteClock "0:00:07"]
[BlackClock "0:00:01"]

1. e4 {[%clk 0:03:00]}  c6 {[%clk 0:02:56]} 2. Nf3 {[%clk 0:02:47]}  d5 {[%clk 0:02:56]} 3. Nc3 {[%clk 0:02:48]}  dxe4 {[%clk 0:02:55]} 4. Nxe4 {[%clk 0:02:49]}  Nf6 {[%clk 0:02:55]} 5. Qe2 {[%clk 0:02:48]}  Nxe4 {[%clk 0:02:53]} 6. Qxe4 {[%clk 0:02:49]}  Qd5 {[%clk 0:02:53]} 7. Qh4 {[%clk 0:02:49]}  Qe6+ {[%clk 0:02:50]} 8. Be2 {[%clk 0:02:50]}  Qg4 {[%clk 0:02:46]} 9. Qg3 {[%clk 0:02:50]}  g6 {[%clk 0:02:44]} 10. d4 {[%clk 0:02:38]}  Bg7 {[%clk 0:02:39]} 11. Qc7 {[%clk 0:02:35]}  Qd7 {[%clk 0:02:34]} 12. Qg3 {[%clk 0:02:33]}  Qg4 {[%clk 0:02:28]} 13. Qc7 {[%clk 0:02:18]}  Qd7 {[%clk 0:02:23]} 14. Qg3 {[%clk 0:02:15]}  Na6 {[%clk 0:02:19]} 15. O-O {[%clk 0:02:11]}  Nc7 {[%clk 0:02:13]} 16. Bc4 {[%clk 0:02:10]}  Nd5 {[%clk 0:02:06]} 17. Ne5 {[%clk 0:02:10]}  Qd6 {[%clk 0:02:06]} 18. Bb3 {[%clk 0:02:07]}  O-O {[%clk 0:02:05]} 19. c4 {[%clk 0:02:05]}  Nc7 {[%clk 0:02:02]} 20. Rd1 {[%clk 0:02:04]}  Ne6 {[%clk 0:01:33]} 21. Be3 {[%clk 0:02:03]}  c5 {[%clk 0:01:28]} 22. Nf3 {[%clk 0:01:50]}  Qxg3 {[%clk 0:01:23]} 23. hxg3 {[%clk 0:01:51]}  b6 {[%clk 0:01:18]} 24. d5 {[%clk 0:01:49]}  Nc7 {[%clk 0:01:13]} 25. Bf4 {[%clk 0:01:44]}  Na6 {[%clk 0:00:59]} 26. Be5 {[%clk 0:01:41]}  f6 {[%clk 0:00:54]} 27. Bc3 {[%clk 0:01:40]}  e5 {[%clk 0:00:52]} 28. dxe6 {[%clk 0:01:37]}  Bxe6 {[%clk 0:00:51]} 29. Rd6 {[%clk 0:01:38]}  Rfe8 {[%clk 0:00:50]} 30. Rad1 {[%clk 0:01:35]}  Rac8 {[%clk 0:00:35]} 31. Ba4 {[%clk 0:01:35]}  Re7 {[%clk 0:00:34]} 32. b3 {[%clk 0:01:30]}  Kf7 {[%clk 0:00:30]} 33. Bc6 {[%clk 0:01:27]}  Nc7 {[%clk 0:00:26]} 34. a4 {[%clk 0:01:01]}  Ne8 {[%clk 0:00:25]} 35. Rxe6 {[%clk 0:01:01]}  Rxe6 {[%clk 0:00:11]} 36. Bd5 {[%clk 0:01:01]}  Nc7 {[%clk 0:00:09]} 37. Bxe6+ {[%clk 0:01:02]}  Kxe6 {[%clk 0:00:09]} 38. Re1+ {[%clk 0:01:00]}  Kf7 {[%clk 0:00:09]} 39. Rd1 {[%clk 0:01:00]}  Bf8 {[%clk 0:00:07]} 40. g4 {[%clk 0:00:58]}  Be7 {[%clk 0:00:06]} 41. g5 {[%clk 0:00:39]}  fxg5 {[%clk 0:00:05]} 42. Ne5+ {[%clk 0:00:40]}  Ke8 {[%clk 0:00:03]} 43. Nc6 {[%clk 0:00:40]}  Bf8 {[%clk 0:00:03]} 44. Nxa7 {[%clk 0:00:39]}  Ra8 {[%clk 0:00:03]} 45. Nc6 {[%clk 0:00:39]}  Ne6 {[%clk 0:00:03]} 46. Re1 {[%clk 0:00:39]}  Kd7 {[%clk 0:00:02]} 47. Ne5+ {[%clk 0:00:39]}  Kd6 {[%clk 0:00:02]} 48. Nf7+ {[%clk 0:00:38]}  Kd7 {[%clk 0:00:02]} 49. Rd1+ {[%clk 0:00:33]}  Ke7 {[%clk 0:00:02]} 50. Ne5 {[%clk 0:00:33]}  Ke8 {[%clk 0:00:01]} 51. Nd7 {[%clk 0:00:30]}  Rd8 {[%clk 0:00:01]} 52. Nf6+ {[%clk 0:00:27]}  Kf7 {[%clk 0:00:01]} 53. Rxd8 {[%clk 0:00:26]}  Nxd8 {[%clk 0:00:01]} 54. Nd5 {[%clk 0:00:26]}  Nc6 {[%clk 0:00:02]} 55. Nxb6 {[%clk 0:00:26]}  Bd6 {[%clk 0:00:02]} 56. Nd5 {[%clk 0:00:24]}  Ke6 {[%clk 0:00:01]} 57. Kf1 {[%clk 0:00:24]}  Nb8 {[%clk 0:00:02]} 58. a5 {[%clk 0:00:23]}  h5 {[%clk 0:00:02]} 59. Ke2 {[%clk 0:00:22]}  Na6 {[%clk 0:00:02]} 60. Kf3 {[%clk 0:00:17]}  Kf5 {[%clk 0:00:02]} 61. Ne3+ {[%clk 0:00:16]}  Ke6 {[%clk 0:00:02]} 62. Ke4 {[%clk 0:00:16]}  Nb8 {[%clk 0:00:02]} 63. Nd5 {[%clk 0:00:11]}  Na6 {[%clk 0:00:02]} 64. f4 {[%clk 0:00:10]}  gxf4 {[%clk 0:00:02]} 65. Nxf4+ {[%clk 0:00:10]}  Kf7 {[%clk 0:00:02]} 66. Nd3 {[%clk 0:00:09]}  Ke6 {[%clk 0:00:02]} 67. Nf4+ {[%clk 0:00:08]}  Kf7 {[%clk 0:00:02]} 68. Bd2 {[%clk 0:00:09]}  h4 {[%clk 0:00:02]} 69. Kd5 {[%clk 0:00:09]}  Be7 {[%clk 0:00:01]} 70. Nd3 {[%clk 0:00:09]}  g5 {[%clk 0:00:01]} 71. Ne5+ {[%clk 0:00:09]}  Ke8 {[%clk 0:00:01]} 72. Ke6 {[%clk 0:00:07]} 1-0


[Site "https://www.chess.com"]

[Event "Titled Tuesday Blitz December 14 2021"]
[White "Migot, Tangi"]
[Black "Taboas Rodriguez, Daniel"]
[WhiteFideId "662445"]
[BlackFideId "2208466"]
[WhiteElo "2398"]
[BlackElo "2429"]
[Result "1-0"]
[Round "07"]
[TimeControl "180+1"]
[Date "2021.12.15"]
[WhiteClock "0:00:06"]
[BlackClock "0:00:02"]

1. d4 {[%clk 0:03:00]}  Nf6 {[%clk 0:02:59]} 2. Nf3 {[%clk 0:03:00]}  g6 {[%clk 0:02:59]} 3. b4 {[%clk 0:02:57]}  Bg7 {[%clk 0:02:59]} 4. c4 {[%clk 0:02:57]}  O-O {[%clk 0:03:00]} 5. Qb3 {[%clk 0:02:56]}  d6 {[%clk 0:02:56]} 6. Bb2 {[%clk 0:02:50]}  Bg4 {[%clk 0:02:48]} 7. Nbd2 {[%clk 0:02:50]}  Nbd7 {[%clk 0:02:48]} 8. e3 {[%clk 0:02:50]}  Re8 {[%clk 0:02:47]} 9. h3 {[%clk 0:02:44]}  Bxf3 {[%clk 0:02:47]} 10. Nxf3 {[%clk 0:02:45]}  e5 {[%clk 0:02:47]} 11. Be2 {[%clk 0:02:42]}  Qe7 {[%clk 0:02:38]} 12. O-O {[%clk 0:02:32]}  h5 {[%clk 0:02:25]} 13. dxe5 {[%clk 0:02:26]}  dxe5 {[%clk 0:02:24]} 14. c5 {[%clk 0:02:25]}  e4 {[%clk 0:02:22]} 15. Ng5 {[%clk 0:02:15]}  c6 {[%clk 0:02:08]} 16. Rad1 {[%clk 0:01:50]}  Nd5 {[%clk 0:02:07]} 17. h4 {[%clk 0:01:50]}  Bxb2 {[%clk 0:01:41]} 18. Qxb2 {[%clk 0:01:51]}  f6 {[%clk 0:01:41]} 19. Nh3 {[%clk 0:01:48]}  Ne5 {[%clk 0:01:41]} 20. Rd4 {[%clk 0:01:40]}  f5 {[%clk 0:01:36]} 21. Rfd1 {[%clk 0:01:37]}  Rad8 {[%clk 0:01:35]} 22. Ng5 {[%clk 0:01:33]}  a6 {[%clk 0:01:21]} 23. Qb3 {[%clk 0:01:31]}  Kg7 {[%clk 0:01:20]} 24. Qb2 {[%clk 0:01:31]}  Qf6 {[%clk 0:01:15]} 25. R1d2 {[%clk 0:01:28]}  Re7 {[%clk 0:01:14]} 26. Bd1 {[%clk 0:01:28]}  Nd3 {[%clk 0:01:08]} 27. Qb3 {[%clk 0:01:17]}  Red7 {[%clk 0:00:46]} 28. Bc2 {[%clk 0:01:17]}  Ne5 {[%clk 0:00:44]} 29. Qb1 {[%clk 0:01:05]}  Nc3 {[%clk 0:00:29]} 30. Qb2 {[%clk 0:00:55]}  Nd5 {[%clk 0:00:18]} 31. Bb3 {[%clk 0:00:53]}  Nf7 {[%clk 0:00:16]} 32. Nxf7 {[%clk 0:00:49]}  Kxf7 {[%clk 0:00:17]} 33. Bxd5+ {[%clk 0:00:29]}  Rxd5 {[%clk 0:00:16]} 34. Rxd5 {[%clk 0:00:25]}  Rxd5 {[%clk 0:00:12]} 35. Qb3 {[%clk 0:00:16]}  Qe6 {[%clk 0:00:12]} 36. Rxd5 {[%clk 0:00:16]}  Qxd5 {[%clk 0:00:12]} 37. Qc2 {[%clk 0:00:16]}  Ke6 {[%clk 0:00:11]} 38. g3 {[%clk 0:00:16]}  Qd3 {[%clk 0:00:10]} 39. Qb2 {[%clk 0:00:15]}  Kd5 {[%clk 0:00:08]} 40. Qg7 {[%clk 0:00:11]}  Qb1+ {[%clk 0:00:08]} 41. Kg2 {[%clk 0:00:11]}  Qxb4 {[%clk 0:00:09]} 42. Qxg6 {[%clk 0:00:11]}  Qxc5 {[%clk 0:00:04]} 43. Qf7+ {[%clk 0:00:10]}  Ke5 {[%clk 0:00:03]} 44. Qxb7 {[%clk 0:00:11]}  Qb5 {[%clk 0:00:02]} 45. Qe7+ {[%clk 0:00:10]}  Kd5 {[%clk 0:00:02]} 46. Qf7+ {[%clk 0:00:11]}  Ke5 {[%clk 0:00:03]} 47. Qe7+ {[%clk 0:00:11]}  Kd5 {[%clk 0:00:03]} 48. Qf6 {[%clk 0:00:11]}  c5 {[%clk 0:00:03]} 49. Qxf5+ {[%clk 0:00:11]}  Kd6 {[%clk 0:00:04]} 50. Qg6+ {[%clk 0:00:10]}  Kd5 {[%clk 0:00:04]} 51. Qxh5+ {[%clk 0:00:10]}  Kc4 {[%clk 0:00:04]} 52. Qf7+ {[%clk 0:00:10]}  Kd3 {[%clk 0:00:05]} 53. Qd5+ {[%clk 0:00:10]}  Ke2 {[%clk 0:00:05]} 54. Qxe4 {[%clk 0:00:10]}  c4 {[%clk 0:00:06]} 55. Qc2+ {[%clk 0:00:09]}  Ke1 {[%clk 0:00:06]} 56. h5 {[%clk 0:00:09]}  Qc6+ {[%clk 0:00:06]} 57. Kg1 {[%clk 0:00:10]}  c3 {[%clk 0:00:06]} 58. h6 {[%clk 0:00:09]}  Qxh6 {[%clk 0:00:05]} 59. Qxc3+ {[%clk 0:00:09]}  Ke2 {[%clk 0:00:06]} 60. Qc4+ {[%clk 0:00:09]}  Ke1 {[%clk 0:00:07]} 61. Kg2 {[%clk 0:00:09]}  Qb6 {[%clk 0:00:05]} 62. e4 {[%clk 0:00:09]}  a5 {[%clk 0:00:05]} 63. Qc2 {[%clk 0:00:08]}  Qb7 {[%clk 0:00:05]} 64. Qd3 {[%clk 0:00:08]}  Qb2 {[%clk 0:00:03]} 65. Qe3+ {[%clk 0:00:08]}  Kd1 {[%clk 0:00:03]} 66. a3 {[%clk 0:00:08]}  a4 {[%clk 0:00:03]} 67. e5 {[%clk 0:00:09]}  Qb3 {[%clk 0:00:04]} 68. e6 {[%clk 0:00:07]}  Qd5+ {[%clk 0:00:02]} 69. Kg1 {[%clk 0:00:06]} 1-0


[Site "https://www.chess.com"]

[Event "Titled Tuesday Blitz December 14 2021"]
[White "Mirzoev, Azer"]
[Black "Vovk, Orest"]
[WhiteFideId "13400304"]
[BlackFideId "14113490"]
[WhiteElo "2525"]
[BlackElo "2203"]
[Result "0-1"]
[Round "07"]
[TimeControl "180+1"]
[Date "2021.12.15"]
[WhiteClock "0:00:36"]
[BlackClock "0:00:22"]

1. d4 {[%clk 0:03:00]}  e5 {[%clk 0:02:58]} 2. Nf3 {[%clk 0:03:01]}  exd4 {[%clk 0:02:55]} 3. Nxd4 {[%clk 0:03:00]}  Nc6 {[%clk 0:02:53]} 4. e4 {[%clk 0:02:55]}  Nxd4 {[%clk 0:02:52]} 5. Qxd4 {[%clk 0:02:55]}  Qf6 {[%clk 0:02:52]} 6. Be3 {[%clk 0:02:53]}  Qxd4 {[%clk 0:02:51]} 7. Bxd4 {[%clk 0:02:53]}  Ne7 {[%clk 0:02:51]} 8. Nc3 {[%clk 0:02:47]}  Nc6 {[%clk 0:02:51]} 9. Be3 {[%clk 0:02:48]}  Bb4 {[%clk 0:02:51]} 10. Bd2 {[%clk 0:02:44]}  d6 {[%clk 0:02:46]} 11. O-O-O {[%clk 0:02:45]}  Be6 {[%clk 0:02:44]} 12. a3 {[%clk 0:02:45]}  Ba5 {[%clk 0:02:42]} 13. f3 {[%clk 0:02:41]}  O-O-O {[%clk 0:02:41]} 14. Nd5 {[%clk 0:02:27]}  Bxd2+ {[%clk 0:02:36]} 15. Rxd2 {[%clk 0:02:28]}  Bxd5 {[%clk 0:02:36]} 16. exd5 {[%clk 0:02:28]}  Ne5 {[%clk 0:02:35]} 17. f4 {[%clk 0:02:27]}  Ng4 {[%clk 0:02:33]} 18. Be2 {[%clk 0:02:22]}  h5 {[%clk 0:02:23]} 19. Bf3 {[%clk 0:02:16]}  Rde8 {[%clk 0:02:20]} 20. Re2 {[%clk 0:02:10]}  Rxe2 {[%clk 0:02:15]} 21. Bxe2 {[%clk 0:02:10]}  Re8 {[%clk 0:02:12]} 22. Bf3 {[%clk 0:02:10]}  f5 {[%clk 0:02:05]} 23. Kd2 {[%clk 0:01:54]}  Kd8 {[%clk 0:01:55]} 24. a4 {[%clk 0:01:52]}  a5 {[%clk 0:01:51]} 25. h3 {[%clk 0:01:42]}  Nf6 {[%clk 0:01:49]} 26. Re1 {[%clk 0:01:41]}  Rxe1 {[%clk 0:01:43]} 27. Kxe1 {[%clk 0:01:42]}  h4 {[%clk 0:01:44]} 28. Kd2 {[%clk 0:01:43]}  Kd7 {[%clk 0:01:35]} 29. Ke3 {[%clk 0:01:40]}  c5 {[%clk 0:01:19]} 30. dxc6+ {[%clk 0:01:38]}  bxc6 {[%clk 0:01:19]} 31. Kd4 {[%clk 0:01:37]}  Kc7 {[%clk 0:01:15]} 32. c3 {[%clk 0:01:33]}  c5+ {[%clk 0:00:59]} 33. Kc4 {[%clk 0:01:28]}  Kb6 {[%clk 0:00:49]} 34. b3 {[%clk 0:01:27]}  Ne4 {[%clk 0:00:41]} 35. Kd5 {[%clk 0:01:16]}  Nxc3+ {[%clk 0:00:35]} 36. Kxd6 {[%clk 0:01:16]}  c4 {[%clk 0:00:32]} 37. bxc4 {[%clk 0:01:09]}  Nxa4 {[%clk 0:00:32]} 38. Ke6 {[%clk 0:00:53]}  Nc3 {[%clk 0:00:26]} 39. c5+ {[%clk 0:00:35]}  Kxc5 {[%clk 0:00:25]} 40. Kxf5 {[%clk 0:00:36]}  a4 {[%clk 0:00:25]} 41. Bh5 {[%clk 0:00:36]}  a3 {[%clk 0:00:22]} 42. Bf7 {[%clk 0:00:36]}  Nd5 {[%clk 0:00:22]} 0-1


[Site "https://www.chess.com"]

[Event "Titled Tuesday Blitz December 14 2021"]
[White "Nesterov, Arseniy"]
[Black "Alikhanov, Felix"]
[WhiteFideId "24198455"]
[BlackFideId "4157427"]
[WhiteElo "2489"]
[BlackElo "2425"]
[Result "1-0"]
[Round "07"]
[TimeControl "180+1"]
[Date "2021.12.14"]
[WhiteClock "0:00:35"]
[BlackClock "0:00:12"]

1. d4 {[%clk 0:03:00]}  Nf6 {[%clk 0:02:59]} 2. c4 {[%clk 0:03:01]}  g6 {[%clk 0:03:00]} 3. Nc3 {[%clk 0:03:01]}  Bg7 {[%clk 0:03:00]} 4. e4 {[%clk 0:03:02]}  d6 {[%clk 0:03:01]} 5. Be2 {[%clk 0:03:02]}  O-O {[%clk 0:03:01]} 6. Be3 {[%clk 0:03:03]}  e5 {[%clk 0:02:48]} 7. d5 {[%clk 0:03:02]}  h5 {[%clk 0:02:47]} 8. h3 {[%clk 0:02:53]}  Nh7 {[%clk 0:02:44]} 9. g4 {[%clk 0:02:47]}  h4 {[%clk 0:02:43]} 10. Nf3 {[%clk 0:02:43]}  f5 {[%clk 0:02:40]} 11. gxf5 {[%clk 0:02:41]}  gxf5 {[%clk 0:02:40]} 12. exf5 {[%clk 0:02:36]}  Bxf5 {[%clk 0:02:40]} 13. Qd2 {[%clk 0:02:17]}  Nd7 {[%clk 0:02:35]} 14. O-O-O {[%clk 0:02:13]}  Nc5 {[%clk 0:02:31]} 15. Rdg1 {[%clk 0:02:02]}  Kh8 {[%clk 0:02:26]} 16. Ng5 {[%clk 0:01:50]}  a5 {[%clk 0:02:10]} 17. Nxh7 {[%clk 0:01:46]}  Kxh7 {[%clk 0:02:09]} 18. Rg5 {[%clk 0:01:37]}  a4 {[%clk 0:01:27]} 19. Rhg1 {[%clk 0:01:24]}  Rf7 {[%clk 0:00:52]} 20. Bh5 {[%clk 0:00:53]}  Nb3+ {[%clk 0:00:26]} 21. axb3 {[%clk 0:00:49]}  axb3 {[%clk 0:00:27]} 22. Rxf5 {[%clk 0:00:46]}  Ra1+ {[%clk 0:00:23]} 23. Nb1 {[%clk 0:00:47]}  Rxf5 {[%clk 0:00:11]} 24. Bg6+ {[%clk 0:00:46]}  Kh8 {[%clk 0:00:12]} 25. Bxf5 {[%clk 0:00:47]}  Qf6 {[%clk 0:00:12]} 26. Be4 {[%clk 0:00:42]}  Qf7 {[%clk 0:00:12]} 27. Qd1 {[%clk 0:00:35]} 1-0


[Site "https://www.chess.com"]